bitfinex-derivatives/quotes_ETHF0:USTF0_20260125
["timestamp","ask_amount","ask_price","bid_price","bid_amount"]
[1769366205109,0.47389765,2847.3,2844.7,0.17601]
[1769366205516,0.47104217,2847.1,2844.6,0.00307419]
[1769366206118,0.47104217,2847.1,2844.7,5.229]
[1769366206320,0.00297616,2847.3,2844.8,1.55891584]
[1769366206719,0.00297616,2847.3,2845.5,1.55891584]
[1769366207419,0.00297616,2847.3,2844.8,1.55891584]
[1769366207717,0.4776679,2847.3,2844.9,5.229]
[1769366207918,0.4776679,2847.3,2844.8,1.55891584]
[1769366208123,0.4776679,2847.3,2845.0,5.229]
[1769366208419,0.4776679,2847.3,2844.8,3.166]
[1769366208723,0.47297161,2847.0,2844.8,3.166]
[1769366209020,0.47297161,2847.0,2844.6,0.00307419]
[1769366209822,0.47307843,2846.4,2844.6,0.00307419]
[1769366210325,0.64898843,2846.4,2844.6,0.00307419]
[1769366210624,0.47249456,2846.2,2844.6,0.00307419]
[1769366210825,0.47249456,2846.0,2842.9,3.166]
[1769366211024,7.62789743,2846.7,2842.9,5.229]
[1769366211025,0.47095746,2845.8,2842.9,5.229]
[1769366211932,0.47095746,2845.8,2842.9,5.2326009]
[1769366214529,0.17596,2845.7,2842.9,5.2326009]
[1769366214731,0.46936984,2845.6,2842.9,5.2326009]
[1769366216219,0.46936984,2845.6,2842.9,0.0036009]
[1769366216425,0.46936984,2845.6,2842.9,3.1696009]
[1769366217626,0.46936984,2845.6,2843.1,1.20995718]
[1769366218522,0.46971087,2845.4,2842.9,3.1696009]
[1769366219635,0.46971087,2845.4,2843.2,1.20995718]
[1769366220032,0.46971087,2845.4,2843.7,1.20995718]
[1769366221632,4.00598159,2846.9,2843.7,1.20995718]
[1769366221830,0.46851096,2846.5,2844.2,1.20995718]
[1769366222034,0.46851096,2846.5,2844.3,5.229]
[1769366222335,0.46869207,2847.0,2844.7,1.20995718]
[1769366223536,0.46869207,2847.0,2844.3,5.229]
[1769366223838,3.34186,2847.2,2844.2,3.166]
[1769366223839,0.4689155,2846.6,2844.2,3.166]
[1769366224137,0.4689155,2846.5,2844.2,4.72710026]
[1769366224937,0.46955367,2847.1,2844.2,4.72710026]
[1769366225332,0.17588,2847.0,2844.2,4.72710026]
[1769366225536,0.00297616,2847.3,2844.2,4.72710026]
[1769366225537,0.46965836,2846.6,2844.2,3.166]
[1769366225937,0.46965836,2846.6,2844.2,4.72710026]
[1769366227329,0.64599428,2846.5,2844.2,3.166]
[1769366227536,0.47009428,2846.2,2843.2,3.166]
[1769366227738,0.47009428,2845.8,2843.2,3.166]
[1769366228233,0.47009428,2845.8,2843.2,10.21299437]
[1769366228638,0.47009428,2845.8,2843.4,1.56110026]
[1769366231539,0.47152891,2845.7,2843.4,3.166]
[1769366231743,0.64747891,2845.7,2843.4,3.166]
[1769366232044,5.0632439,2846.9,2843.0,3.166]
[1769366232045,0.47152891,2845.3,2843.0,3.166]
[1769366232342,0.47444109,2844.9,2842.9,0.0036009]
[1769366232541,0.47444109,2844.8,2842.9,0.0036009]
[1769366232943,0.47444109,2844.7,2842.9,0.0036009]
[1769366233248,0.65046109,2844.7,2842.9,0.0036009]
[1769366233449,0.47451807,2844.5,2842.9,0.0036009]
[1769366233647,0.47451807,2844.4,2842.9,0.0036009]
[1769366233840,0.47271762,2843.8,2841.2,10.41883094]
[1769366234145,0.47271762,2843.8,2840.6,1.56110026]
[1769366234146,0.47271762,2843.8,2841.3,5.229]
[1769366234343,0.17608,2843.7,2840.8,7.09805554]
[1769366234544,0.1761,2843.3,2840.5,3.166]
[1769366234845,0.47162106,2843.2,2840.5,5.23352968]
[1769366235850,0.17999545,2843.3,2840.5,0.00452968]
[1769366235851,0.4717745,2842.0,2840.5,0.00452968]
[1769366237438,0.46448678,2841.6,2837.9,0.28003291]
[1769366237747,0.46448678,2840.9,2838.2,1.56110026]
[1769366238244,0.46448678,2840.9,2838.8,1.56110026]
[1769366238448,0.00376104,2840.9,2838.8,1.56500519]
[1769366238644,0.46795746,2840.9,2838.8,0.00390493]
[1769366239846,0.00376104,2840.9,2838.8,1.56500519]
[1769366241548,0.00376104,2840.9,2838.8,0.00390493]
[1769366242344,0.46854911,2840.9,2838.8,0.00390493]
[1769366244246,0.46854911,2840.9,2838.8,3.17290493]
[1769366244449,0.64315265,2840.7,2838.8,0.00390493]
[1769366244655,0.46689265,2840.6,2838.8,0.00390493]
[1769366246344,0.46689265,2840.6,2838.9,2.066]
[1769366246550,0.46689265,2840.6,2839.0,5.236]
[1769366247153,0.00376104,2840.9,2839.0,5.236]
[1769366247455,0.00376104,2840.9,2838.8,65.00390493]
[1769366247654,0.00376104,2840.9,2838.9,5.236]
[1769366248358,0.47310235,2840.9,2839.0,5.236]
[1769366248659,0.47310235,2840.9,2838.8,65.00390493]
[1769366248961,0.47310235,2840.9,2839.1,2.066]
[1769366250268,0.00376104,2840.9,2839.1,2.066]
[1769366250861,0.46884565,2842.1,2839.1,2.066]
[1769366251258,0.46884565,2842.1,2839.2,27.432]
[1769366251463,0.46884565,2842.1,2838.8,65.00390493]
[1769366251464,0.46884565,2842.1,2839.3,5.236]
[1769366251856,0.47310671,2842.1,2839.3,5.236]
[1769366252054,0.47310671,2842.1,2838.8,65.00390493]
[1769366252258,0.47310671,2842.1,2838.9,27.432]
[1769366252662,0.47310671,2842.1,2839.0,3.17]
[1769366252963,0.46901183,2842.0,2839.1,2.066]
[1769366253159,0.46901183,2842.0,2838.8,65.00390493]
[1769366253358,0.46901183,2842.0,2838.9,5.236]
[1769366253570,0.46901183,2842.0,2839.0,5.236]
[1769366254061,0.46912247,2841.7,2839.1,5.236]
[1769366254960,0.46912247,2841.7,2838.8,65.00390493]
[1769366255160,0.00426106,2842.1,2838.8,65.00390493]
[1769366255161,0.46923791,2841.5,2838.9,2.066]
[1769366255361,0.00426106,2842.1,2838.9,2.066]
[1769366255566,0.00426106,2842.1,2839.1,5.839]
[1769366255960,0.47349897,2842.1,2839.2,3.6767908]
[1769366256156,0.47349897,2842.1,2839.0,1.56673673]
[1769366256364,0.47349897,2842.1,2839.1,3.6767908]
[1769366257064,0.47349897,2842.1,2838.9,9.1196446]
[1769366257968,0.47349897,2842.1,2839.0,3.68653796]
[1769366258362,0.00426106,2842.1,2839.0,9.52553796]
[1769366259261,0.46848629,2842.7,2839.0,13.04653796]
[1769366260170,0.4718852,2842.7,2839.0,13.04653796]
[1769366260366,0.4718852,2842.7,2839.0,3.68653796]
[1769366262864,0.4718852,2842.7,2838.9,10.68638133]
[1769366263172,0.47138479,2842.3,2838.9,9.1196446]
[1769366263367,0.64756479,2842.1,2838.9,2.066]
[1769366263570,0.47138479,2842.0,2838.9,2.066]
[1769366263761,0.47138479,2841.9,2838.9,2.066]
[1769366264369,0.47144131,2841.8,2838.9,2.066]
[1769366264571,0.47144131,2841.6,2838.9,2.066]
[1769366266873,0.47192323,2841.5,2838.9,2.066]
[1769366267870,0.47193038,2841.4,2838.9,2.066]
[1769366268268,0.47198324,2841.2,2838.9,2.066]
[1769366269470,0.47202253,2842.5,2838.9,3.63273673]
[1769366269675,0.47202253,2842.5,2839.0,9.80881834]
[1769366270569,0.47202253,2842.5,2839.0,3.96981834]
[1769366270966,0.47202253,2842.5,2839.0,9.80881834]
[1769366271567,0.47202253,2842.5,2839.0,16.77102981]
[1769366271977,0.47202253,2842.5,2839.8,0.0612627]
[1769366272178,0.47202253,2842.5,2839.9,2.066]
[1769366272479,0.47202253,2842.5,2839.8,0.0612627]
[1769366272775,0.47099213,2842.1,2838.8,67.06990493]
[1769366272963,0.47099213,2841.9,2839.3,0.0612751]
[1769366273169,0.47099213,2841.9,2839.4,2.066]
[1769366273974,0.47284134,2841.5,2838.8,65.00390493]
[1769366274375,0.47284134,2841.3,2838.8,65.00390493]
[1769366274679,0.47284134,2841.1,2838.8,65.00390493]
[1769366275579,0.47284134,2841.1,2838.8,65.06519358]
[1769366276092,0.47333001,2840.8,2838.8,53.50395299]
[1769366276279,0.17635,2839.4,2837.5,0.21258935]
[1769366276478,0.17635,2839.3,2837.5,6.21258935]
[1769366276779,4.38723777,2839.2,2836.9,0.21258935]
[1769366276979,4.00598159,2839.9,2836.9,0.21258935]
[1769366277172,0.00265816,2839.9,2837.1,0.21282477]
[1769366277577,4.20751465,2839.8,2837.3,0.21282477]
[1769366277872,0.17896816,2839.9,2837.3,0.21282477]
[1769366278065,4.42976453,2839.8,2837.5,0.21282477]
[1769366278273,0.22220176,2839.6,2837.1,6.0]
[1769366278472,0.39855176,2839.4,2837.2,0.22220176]
[1769366278774,0.39855176,2839.4,2836.9,3.17548954]
[1769366278775,2.066,2839.3,2837.3,6.22220176]
[1769366278969,5.237,2839.3,2837.3,0.22220176]
[1769366279574,0.17635,2839.4,2837.5,0.22109124]
[1769366280171,0.22098649,2838.5,2836.9,0.00448954]
[1769366280378,0.39738649,2838.5,2836.9,0.00448954]
[1769366280577,0.17644,2837.9,2835.5,0.3480366]
[1769366280779,0.17644,2837.9,2835.9,5.74589978]
[1769366280977,5.239,2837.8,2835.9,5.74589978]
[1769366281183,3.172,2838.6,2836.0,0.34722863]
[1769366281377,2.067,2838.5,2836.0,0.34722863]
[1769366281579,5.239,2838.4,2836.2,0.34722863]
[1769366281775,0.00262672,2838.5,2835.9,0.0039079]
[1769366281992,9.41833035,2838.4,2835.9,0.0039079]
[1769366282184,0.00262672,2838.5,2836.1,0.34717676]
[1769366282587,0.00262672,2838.5,2836.3,0.34717676]
[1769366282990,0.00262672,2838.5,2836.5,0.34893974]
[1769366283494,0.00262672,2838.5,2836.6,5.74589978]
[1769366283685,0.00262672,2838.5,2836.7,0.34889755]
[1769366283881,0.27544568,2840.4,2836.7,0.34889755]
[1769366284088,0.17642,2838.2,2835.9,0.35269838]
[1769366284582,14.81579913,2840.3,2835.9,0.35269838]
[1769366284583,0.17638,2838.9,2835.9,0.35269838]
[1769366284986,0.17964853,2838.9,2835.9,0.35269838]
[1769366285186,0.00326853,2838.9,2835.9,0.35269838]
[1769366285386,0.02463723,2838.9,2835.9,0.35269838]
[1769366285884,0.17643,2838.1,2835.9,0.35269838]
[1769366286288,0.01832752,2837.9,2835.8,1.36275097]
[1769366286489,2.068,2837.8,2835.8,1.36275097]
[1769366286694,0.1765,2836.9,2835.8,1.36275097]
[1769366287192,3.34945,2837.7,2835.8,1.36275097]
[1769366287386,0.00615276,2837.6,2835.8,1.36590232]
[1769366287584,0.17648,2837.3,2835.8,1.35974956]
[1769366288187,0.00312099,2837.7,2835.8,1.71409631]
[1769366288593,0.17646,2837.6,2835.8,1.71409631]
[1769366289187,0.00312099,2837.7,2835.9,0.35746673]
[1769366290095,0.17646,2837.6,2835.9,0.35746673]
[1769366290398,0.00312099,2837.7,2835.9,0.35746673]
[1769366292294,0.1763,2840.2,2835.9,0.35746673]
[1769366292608,5.0632439,2841.1,2835.9,0.35746673]
[1769366292609,0.17627,2840.7,2836.5,0.34904235]
[1769366292791,5.839,2842.1,2836.0,3.83925097]
[1769366292792,0.17622,2841.5,2836.7,0.34904235]
[1769366293098,0.17622,2841.5,2836.9,0.34904235]
[1769366293288,0.18023145,2841.5,2837.1,0.3358109]
[1769366293595,0.17623,2841.3,2838.0,0.3358109]
[1769366293803,0.03732968,2841.3,2838.2,0.3358109]
[1769366294093,0.03732968,2841.3,2838.0,0.00445671]
[1769366294297,0.03732968,2841.3,2837.1,0.3358109]
[1769366294298,0.03418566,2840.1,2837.1,0.3358109]
[1769366294594,3.521,2839.9,2837.1,0.3358109]
[1769366294797,0.17631,2840.0,2837.3,0.3358109]
[1769366295189,0.17631,2840.0,2837.3,0.33980757]
[1769366295798,0.17631,2840.0,2837.4,0.32472361]
[1769366295997,0.03418566,2840.8,2837.4,0.50119361]
[1769366296197,0.17627,2840.6,2837.6,0.32477442]
[1769366296398,5.41827,2840.6,2837.6,0.32477442]
[1769366296995,0.1763,2840.1,2837.6,0.32477442]
[1769366297395,0.17633,2839.6,2837.6,0.32477442]
[1769366297702,0.17634,2839.5,2837.3,0.00399667]
[1769366297899,0.17636,2839.2,2837.3,0.00399667]
[1769366298095,5.41836,2839.2,2837.3,0.00399667]
[1769366298402,0.00361139,2839.5,2837.3,0.32790583]
[1769366299797,0.00361139,2839.5,2837.7,0.17645]
[1769366300003,0.00361139,2839.5,2837.8,0.32373807]
[1769366300503,0.00361139,2839.5,2838.1,0.3237933]
[1769366301192,3.521,2841.7,2838.1,0.3237933]
[1769366301393,0.17615,2842.6,2839.8,0.32390768]
[1769366301798,0.17615,2842.6,2839.9,0.32390768]
[1769366302200,0.1795065,2842.6,2839.9,0.3267226]
[1769366302597,0.17617,2842.3,2840.0,0.32396198]
[1769366302898,3.34917,2842.3,2840.0,0.32396198]
[1769366303298,0.17617,2842.3,2840.0,0.32396198]
[1769366305000,0.00688944,2842.4,2839.9,0.00281492]
[1769366305305,0.17622,2841.4,2839.9,0.00281492]
[1769366305504,0.17623,2841.3,2839.9,0.00281492]
[1769366305707,5.241,2841.9,2839.9,0.00281492]
[1769366305907,5.41719,2841.9,2839.9,0.00281492]
[1769366306110,0.00377543,2842.5,2839.9,0.32767719]
[1769366306310,5.24,2842.4,2839.9,0.32767719]
[1769366306510,0.17618,2842.1,2839.9,0.32767719]
[1769366306712,5.24,2842.0,2839.9,0.32767719]
[1769366306904,0.17618,2842.1,2839.9,0.32767719]
[1769366308509,0.0033565,2842.6,2840.0,0.17631]
[1769366308715,0.0033565,2842.6,2840.2,0.32656063]
[1769366309410,0.17616,2842.4,2840.2,0.32656063]
[1769366310514,0.0033565,2842.6,2840.4,0.3268388]
[1769366311911,0.0033565,2842.6,2840.6,0.32591175]
[1769366312214,0.0033565,2842.6,2841.2,0.32595651]
[1769366317017,0.17616,2842.4,2841.2,0.32595651]
[1769366317319,0.17617,2842.3,2840.5,0.32729176]
[1769366317519,0.0033565,2842.6,2840.5,0.32729176]
[1769366317711,0.17617,2842.2,2840.5,0.32729176]
[1769366319012,0.17619,2841.9,2839.9,0.3300216]
[1769366319520,0.1762,2841.8,2839.9,0.3300216]
[1769366320718,0.1762,2841.7,2839.9,0.3300216]
[1769366321221,3.171,2842.0,2839.9,0.3300216]
[1769366321412,0.17617,2842.3,2840.0,0.32507989]
[1769366321613,1.56636916,2841.9,2839.9,0.00281492]
[1769366321920,0.17624,2841.2,2839.9,0.00281492]
[1769366324516,2.066,2841.6,2839.9,0.00281492]
[1769366324713,3.521,2841.8,2839.9,0.00281492]
[1769366324920,0.17623,2841.3,2839.9,0.00281492]
[1769366325212,0.17624,2841.2,2839.9,0.00281492]
[1769366325818,8.758,2841.4,2839.9,0.00281492]
[1769366326017,0.17626,2840.8,2839.9,0.00281492]
[1769366327114,2.066,2841.0,2839.9,0.00281492]
[1769366327316,0.17622,2841.4,2839.9,0.00281492]
[1769366328416,0.17623,2841.3,2839.9,0.00281492]
[1769366328628,2.24223,2841.3,2839.9,0.00281492]
[1769366328824,0.17623,2841.3,2839.9,0.00281492]
[1769366329418,0.17623,2841.3,2839.9,0.33269183]
[1769366331623,9.98861709,2843.3,2840.0,3.171]
[1769366331824,5.33326154,2843.4,2841.6,1.56636916]
[1769366331825,0.30815559,2843.4,2841.6,1.56636916]
[1769366332023,0.30815559,2843.4,2840.9,1.56636916]
[1769366332720,0.176,2844.9,2842.1,1.56636916]
[1769366332925,2.243,2844.9,2842.1,1.56636916]
[1769366333326,0.176,2844.9,2842.1,1.56636916]
[1769366333727,0.176,2844.9,2842.8,1.56636916]
[1769366333924,0.17955056,2844.9,2842.8,1.56636916]
[1769366334433,0.00355056,2844.9,2842.1,1.5697263]
[1769366334630,0.17602,2844.7,2842.1,0.00335714]
[1769366334931,0.30815559,2844.4,2842.1,0.00335714]
[1769366335124,0.30815559,2844.2,2842.1,0.00335714]
[1769366335323,3.82915559,2844.0,2842.1,0.00335714]
[1769366335525,0.30815559,2843.9,2842.1,0.00335714]
[1769366337521,0.30815559,2843.7,2842.1,0.00335714]
[1769366337918,0.30815559,2843.6,2840.8,2.066]
[1769366338520,3.69708,2843.7,2840.4,3.48326612]
[1769366338521,0.17611,2843.2,2840.4,3.48326612]
[1769366338727,0.30815559,2843.1,2840.5,0.31326612]
[1769366338932,0.30815559,2843.1,2840.5,0.31613373]
[1769366341339,0.17609,2843.5,2840.5,0.00286761]
[1769366341340,0.30815559,2842.7,2840.5,0.00286761]
[1769366341538,0.30815559,2842.1,2840.5,0.00286761]
[1769366341742,0.30815559,2842.0,2840.5,0.00286761]
[1769366342342,0.30815559,2841.8,2839.2,2.37926612]
[1769366343144,0.30815559,2841.8,2839.3,0.29424062]
[1769366343331,0.30815559,2841.8,2839.3,0.29863691]
[1769366344338,0.30815559,2841.8,2839.3,0.00439629]
[1769366344540,0.26769074,2841.4,2839.3,0.00439629]
[1769366344743,0.26769074,2841.3,2839.3,0.00439629]
[1769366344935,0.17625,2841.0,2839.3,0.00439629]
[1769366345139,0.26769074,2840.9,2839.3,0.00439629]
[1769366345545,0.44394074,2840.9,2839.3,0.00439629]
[1769366345744,0.26769074,2840.5,2839.3,0.00439629]
[1769366345937,0.2711535,2840.5,2839.3,0.00439629]
[1769366346248,0.2711535,2840.5,2838.3,2.066]
[1769366347045,0.26769074,2840.4,2838.3,2.066]
[1769366347347,0.26769074,2840.4,2838.3,2.0689021]
[1769366353748,0.00346276,2840.5,2838.4,0.29424062]
[1769366355846,0.25725096,2840.5,2838.4,0.29424062]
[1769366356342,0.25725096,2840.5,2838.4,0.28052763]
[1769366358253,0.00346276,2840.5,2838.4,0.28052763]
[1769366359552,0.00346276,2840.5,2838.7,1.2136297]
[1769366359956,0.00346276,2840.5,2838.7,1.49415733]
[1769366360454,0.00346276,2840.5,2838.8,0.28052763]
[1769366361149,0.2537882,2841.6,2839.3,0.27417397]
[1769366361359,0.2537882,2841.6,2839.4,0.27417397]
[1769366362355,0.2581196,2841.6,2839.3,3.172]
[1769366362852,0.2537882,2841.4,2839.3,3.172]
[1769366363643,0.2537882,2841.3,2839.3,3.172]
[1769366365657,0.2537882,2841.2,2839.3,3.172]
[1769366365860,0.0043314,2841.6,2839.3,3.172]
[1769366365861,0.2537882,2841.0,2839.3,3.172]
[1769366367756,0.2537882,2840.7,2838.3,2.0689021]
[1769366367962,0.2537882,2840.5,2838.3,2.0689021]
[1769366368665,0.2537882,2840.5,2838.4,0.26104816]
[1769366370159,0.2537882,2841.0,2838.4,0.26104816]
[1769366370359,0.2537882,2840.8,2838.4,0.26104816]
[1769366371667,0.2537882,2841.3,2838.4,0.26104816]
[1769366372356,0.2537882,2841.3,2838.6,0.25543946]
[1769366372660,0.2537882,2841.2,2838.6,0.25543946]
[1769366372862,0.4300182,2841.2,2838.6,0.25543946]
[1769366373068,0.2537882,2841.1,2838.6,0.25543946]
[1769366374765,0.2537882,2841.1,2838.9,0.2530501]
[1769366376764,0.17622,2841.5,2838.9,0.2530501]
[1769366377163,0.17622,2841.5,2839.0,0.24748296]
[1769366377363,0.246712,2841.4,2839.0,0.24748296]
[1769366377863,0.246712,2841.4,2839.1,0.24748296]
[1769366378962,0.0043314,2841.6,2839.1,0.24748296]
[1769366379365,0.0043314,2841.6,2839.5,0.24212482]
[1769366379564,0.0043314,2841.6,2839.7,9.09613584]
[1769366379760,0.0043314,2841.6,2839.8,0.24212482]
[1769366380364,0.422872,2842.4,2839.8,0.24212482]
[1769366380365,0.246712,2842.4,2839.8,0.24212482]
[1769366380667,0.246712,2843.0,2839.8,0.24212482]
[1769366381171,0.246712,2843.0,2840.7,0.23858897]
[1769366381367,0.246712,2843.0,2840.9,0.23858897]
[1769366381564,0.246712,2843.0,2841.0,3.171]
[1769366381964,0.2507825,2843.0,2841.0,3.17391776]
[1769366383672,0.246712,2842.8,2841.0,3.17391776]
[1769366383965,0.0040705,2843.0,2841.0,3.40685676]
[1769366384272,0.0040705,2843.0,2841.1,0.23103175]
[1769366387969,0.2507825,2843.0,2841.0,3.17391776]
[1769366388685,0.246712,2842.7,2841.0,3.17391776]
[1769366388970,0.246712,2842.6,2841.0,3.17391776]
[1769366389274,0.422862,2842.6,2841.0,3.17391776]
[1769366389471,0.246712,2842.5,2841.0,3.17391776]
[1769366390479,0.4269025,2843.0,2841.0,3.17391776]
[1769366390669,0.246712,2842.9,2841.0,3.17391776]
[1769366392280,0.246712,2842.6,2841.0,3.17391776]
[1769366392576,0.246712,2842.5,2841.0,3.17391776]
[1769366392775,0.246712,2842.4,2841.0,3.17391776]
[1769366393377,0.246712,2842.9,2841.0,3.17391776]
[1769366393682,0.246712,2842.7,2841.0,3.17391776]
[1769366395173,0.246712,2842.5,2841.0,3.17391776]
[1769366395374,0.246712,2842.3,2841.0,3.17391776]
[1769366395775,0.246712,2842.1,2841.0,3.17391776]
[1769366398079,0.246712,2842.0,2841.0,3.17391776]
[1769366398276,0.246712,2841.8,2840.0,2.066]
[1769366398470,3.521,2842.7,2840.0,2.066]
[1769366398471,0.246712,2841.7,2840.0,2.066]
[1769366398881,0.246712,2841.6,2840.0,2.066]
[1769366399281,0.246712,2841.6,2840.0,2.07046877]
[1769366399478,0.246712,2842.2,2840.0,2.07046877]
[1769366399678,0.246712,2842.0,2840.0,2.07046877]
[1769366400076,0.246712,2841.9,2840.0,2.07046877]
[1769366400281,0.246712,2841.8,2840.0,2.07046877]
[1769366402090,0.246712,2842.8,2840.1,0.20371033]
[1769366402893,0.246712,2842.5,2840.0,2.06855777]
[1769366403191,3.521,2842.6,2839.7,2.96308877]
[1769366403192,1.21181301,2842.1,2839.7,2.96308877]
[1769366403491,0.21905522,2841.9,2839.7,2.96308877]
[1769366403680,0.21905522,2841.6,2839.7,2.96308877]
[1769366404297,0.21905522,2841.6,2839.7,2.96707707]
[1769366405094,0.21905522,2841.3,2838.7,2.066]
[1769366405593,0.21905522,2841.0,2838.7,2.066]
[1769366406289,0.22168969,2841.0,2838.7,2.06895465]
[1769366407094,0.22168969,2841.0,2838.8,0.19020861]
[1769366408093,0.22168969,2841.0,2838.7,2.06895465]
[1769366409192,0.21905522,2840.3,2836.8,0.18459612]
[1769366409394,1.21181301,2840.4,2836.8,0.18459612]
[1769366409395,0.21905522,2840.0,2836.8,0.18459612]
[1769366410193,0.21905522,2840.0,2836.8,0.18837157]
[1769366410394,0.21905522,2839.9,2836.8,0.18837157]
[1769366410692,0.21905522,2838.9,2836.8,0.00377545]
[1769366410895,0.21905522,2838.8,2836.8,0.00377545]
[1769366411497,0.0029089,2838.9,2836.8,0.18587907]
[1769366415602,0.2174715,2838.7,2836.8,0.00377545]
[1769366415897,0.2174715,2838.5,2836.8,0.00377545]
[1769366416803,0.2203804,2838.9,2836.8,0.00377545]
[1769366417102,0.2174715,2838.5,2836.8,0.00377545]
[1769366417395,0.0029089,2838.9,2836.8,0.00377545]
[1769366417396,0.2174715,2838.2,2836.8,0.00377545]
[1769366417795,0.2174715,2838.8,2836.8,0.00377545]
[1769366418197,0.2174715,2838.6,2836.8,0.00377545]
[1769366419194,0.0029089,2838.9,2836.9,0.16174938]
[1769366419396,0.0029089,2838.9,2837.1,0.16174938]
[1769366419797,0.2174715,2840.4,2837.5,0.15884048]
[1769366420499,0.2174715,2840.3,2837.5,0.15884048]
[1769366420802,0.22168112,2840.3,2837.5,0.15884048]
[1769366422501,0.00420962,2840.3,2838.2,0.16237126]
[1769366422806,0.00420962,2840.3,2838.4,0.16237126]
[1769366423003,0.00420962,2840.3,2838.5,2.068]
[1769366423205,0.00420962,2840.3,2838.6,0.15546588]
[1769366423707,0.00420962,2840.3,2838.5,2.068]
[1769366424006,0.00420962,2840.3,2838.7,1.21408068]
[1769366424301,0.2174715,2841.3,2838.8,0.15391825]
[1769366424499,0.2174715,2841.3,2838.7,1.21408068]
[1769366424903,0.2174715,2841.3,2838.7,1.36378931]
[1769366425307,0.22121323,2841.3,2838.7,1.36629951]
[1769366426108,0.22121323,2841.3,2839.2,1.21408068]
[1769366426605,0.00374173,2841.3,2839.3,0.14648113]
[1769366427198,1.21408068,2842.5,2839.3,0.14648113]
[1769366427398,0.2174715,2842.5,2840.3,1.21408068]
[1769366427602,0.2174715,2842.5,2840.4,5.239]
[1769366428404,0.22075549,2842.5,2840.4,5.239]
[1769366429100,0.39691549,2842.5,2840.4,5.239]
[1769366429314,0.2174715,2842.4,2840.4,5.239]
[1769366431708,0.2174715,2842.4,2840.4,5.37466342]
[1769366431908,0.00328399,2842.5,2840.5,0.13566342]
[1769366432808,0.22075549,2842.5,2840.4,5.239]
[1769366434903,0.20092926,2842.3,2840.4,5.239]
[1769366436609,0.00328399,2842.5,2840.5,0.12645876]
[1769366440005,0.00328399,2842.5,2840.9,0.12565375]
[1769366440209,0.00328399,2842.5,2840.9,0.12853335]
[1769366441009,0.20092926,2843.3,2840.9,0.12853335]
[1769366441210,0.37702926,2843.3,2840.9,0.12853335]
[1769366441419,0.20092926,2843.2,2840.9,0.12853335]
[1769366441616,0.20092926,2842.9,2840.9,0.0028796]
[1769366441821,0.20092926,2842.8,2840.9,0.0028796]
[1769366442114,0.20394624,2842.8,2840.9,0.0028796]
[1769366443517,0.37707926,2842.6,2840.9,0.0028796]
[1769366443714,0.20092926,2842.5,2840.9,0.0028796]
[1769366444415,0.00301698,2842.8,2840.9,0.11309983]
[1769366446622,0.00301698,2842.8,2841.3,1.21408068]
[1769366447214,0.20092926,2843.6,2841.3,1.31576108]
[1769366447924,0.20092926,2843.6,2841.8,1.21408068]
[1769366448125,0.20492142,2843.6,2841.9,5.236]
[1769366449020,0.20092926,2843.1,2841.9,3.17]
[1769366450223,0.00399216,2843.6,2841.9,3.17]
[1769366450224,0.20492142,2843.6,2841.9,3.17]
[1769366451727,0.20092926,2843.4,2841.9,3.17]
[1769366456323,0.00399216,2843.6,2841.9,3.17]
[1769366456828,0.00399216,2843.6,2841.9,3.25869164]
[1769366458125,0.00399216,2843.6,2841.9,3.17]
[1769366458126,0.20492142,2843.6,2841.9,3.17]
[1769366460419,0.17611,2843.2,2841.9,3.17]
[1769366460624,0.20092926,2843.1,2841.9,3.17]
[1769366461530,0.20092926,2842.7,2840.9,0.0028796]
[1769366462929,0.20092926,2843.2,2840.9,0.21001453]
[1769366464331,0.17952338,2843.1,2840.9,0.0028796]
[1769366464537,4.17311033,2843.0,2840.9,0.0028796]
[1769366464733,0.17952338,2843.0,2840.9,0.0028796]
[1769366465842,0.17952338,2843.0,2841.2,0.17966826]
[1769366466334,0.17952338,2843.5,2841.2,0.17966826]
[1769366466537,0.00399216,2843.6,2841.7,0.17966826]
[1769366466840,0.00399216,2843.6,2841.9,0.17966826]
[1769366467741,0.00399216,2843.6,2842.2,0.17966826]
[1769366468138,0.00399216,2843.6,2841.8,3.169]
[1769366468637,0.18351554,2843.6,2841.8,3.169]
[1769366469742,0.18351554,2843.6,2841.9,0.17966826]
[1769366470141,0.18351554,2843.6,2841.8,3.169]
[1769366471342,0.18351554,2843.6,2841.9,0.17966826]
[1769366471639,0.00399216,2843.6,2841.9,0.17966826]
[1769366473545,0.18351554,2843.6,2841.8,4.38308068]
[1769366473844,0.00399216,2843.6,2841.9,0.17966826]
[1769366475640,0.17387793,2843.6,2841.8,3.169]
[1769366476841,0.17387793,2843.6,2841.8,3.3332129]
[1769366477443,0.00399216,2843.6,2841.9,0.1642129]
[1769366483654,0.16988577,2845.0,2842.4,0.1642129]
[1769366484655,0.17426551,2845.0,2842.4,0.1642129]
[1769366487159,0.17426551,2845.0,2842.6,0.1642129]
[1769366488053,0.00437974,2845.0,2842.6,0.1642129]
[1769366488252,0.00437974,2845.0,2842.9,0.1642129]
[1769366488558,0.00437974,2845.0,2843.1,0.1642129]
[1769366488759,0.17426551,2845.0,2843.3,0.1642129]
[1769366489059,0.17426551,2845.0,2843.2,3.168]
[1769366489260,0.17426551,2845.0,2843.2,3.3322129]
[1769366493357,0.00437974,2845.0,2843.3,0.16495192]
[1769366494362,0.15986772,2845.0,2843.3,0.16495192]
[1769366496466,0.15986772,2845.0,2843.2,3.168]
[1769366496764,0.15986772,2845.0,2843.2,3.33295192]
[1769366497367,0.15986772,2845.0,2843.2,3.168]
[1769366499065,0.15986772,2845.0,2842.9,0.00312488]
[1769366499268,3.68148798,2844.8,2842.9,0.00312488]
[1769366499562,0.15548798,2844.7,2842.9,0.00312488]
[1769366500169,0.15548798,2844.7,2842.0,3.167]
[1769366500466,0.15548798,2844.4,2842.0,3.167]
[1769366501365,0.15548798,2844.4,2842.0,3.17132956]
[1769366503465,1.36602116,2844.1,2842.0,3.17132956]
[1769366503670,0.15548798,2843.9,2840.8,9.09613584]
[1769366503868,0.15548798,2843.6,2840.8,0.16495192]
[1769366504570,0.15548798,2843.6,2840.8,0.16752706]
[1769366505668,3.68148798,2842.7,2840.8,0.00257514]
[1769366505870,0.15548798,2842.4,2840.8,0.00257514]
[1769366506668,0.43782612,2842.4,2840.8,0.00257514]
[1769366506869,0.15548798,2842.2,2840.8,0.00257514]
[1769366510377,0.15883589,2842.7,2840.8,0.00257514]
[1769366511274,0.00334791,2842.7,2840.8,0.16752706]
[1769366512367,0.15548798,2843.7,2840.8,0.16752706]
[1769366512965,0.15548798,2844.3,2841.5,0.16495192]